fUSD/lending_fUSD_20240403
["ID","MTS","AMOUNT","RATE_DAILY","PERIOD"]
[321394745,1712123450106,-545.99013019,0.0004,2]
[321394746,1712123450115,-545.99013019,0.0004,2]
[321394747,1712123450125,-545.99013019,0.0004,2]
[321394748,1712123450134,-545.99013019,0.0004,2]
[321394749,1712123450143,-545.99013019,0.0004,2]
[321394750,1712123450152,-545.99013019,0.0004,2]
[321394751,1712123450161,-545.99013019,0.0004,2]
[321394752,1712123450170,-545.99013019,0.0004,2]
[321394753,1712123450179,-545.99013019,0.0004,2]
[321394754,1712123450188,-545.99013019,0.0004,2]
[321394755,1712123450197,-545.99013019,0.0004,2]
[321394756,1712123450206,-545.99013019,0.0004,2]
[321394757,1712123450215,-545.99013019,0.0004,2]
[321394758,1712123450224,-545.99013019,0.0004,2]
[321394759,1712123450234,-545.99013019,0.0004,2]
[321394760,1712123450243,-545.99013019,0.0004,2]
[321394761,1712123450253,-545.99013019,0.0004,2]
[321394762,1712123450266,-545.99013019,0.0004,2]
[321394763,1712123450276,-545.99013019,0.0004,2]
[321394764,1712123450286,-545.99013019,0.0004,2]
[321394765,1712123450296,-545.99013019,0.0004,2]
[321394766,1712123450306,-545.99013019,0.0004,2]
[321394767,1712123450316,-545.99013019,0.0004,2]
[321394768,1712123450326,-545.99013019,0.0004,2]
[321394769,1712123450336,-545.99013019,0.0004,2]
[321394770,1712123450345,-545.99013019,0.0004,2]
[321394771,1712123450355,-545.99013019,0.0004,2]
[321394772,1712123450365,-545.99013019,0.0004,2]
[321394773,1712123450374,-545.99013019,0.0004,2]
[321394774,1712123450384,-545.99013019,0.0004,2]
[321394775,1712123450394,-545.99013019,0.0004,2]
[321394776,1712123450403,-545.99013019,0.0004,2]
[321394777,1712123450412,-545.99013019,0.0004,2]
[321394778,1712123450422,-545.99013019,0.0004,2]
[321394779,1712123450431,-545.99013019,0.0004,2]
[321394780,1712123450441,-545.99013019,0.0004,2]
[321394781,1712123450449,-545.99013019,0.0004,2]
[321394782,1712123450459,-545.99013019,0.0004,2]
[321394783,1712123450468,-545.99013019,0.0004,2]
[321394784,1712123450478,-545.99013019,0.0004,2]
[321394785,1712123450488,-545.99013019,0.0004,2]
[321394786,1712123450498,-545.99013019,0.0004,2]
[321394787,1712123450508,-545.99013019,0.0004,2]
[321394788,1712123450521,-545.99013019,0.0004,2]
[321394789,1712123450530,-545.99013019,0.0004,2]
[321394790,1712123450541,-545.99013019,0.0004,2]
[321394791,1712123450551,-545.99013019,0.0004,2]
[321394792,1712123450561,-545.99013019,0.0004,2]
[321394793,1712123450570,-545.99013019,0.0004,2]
[321394794,1712123450580,-545.99013019,0.0004,2]
[321394795,1712123450590,-545.99013019,0.0004,2]
[321394796,1712123450599,-545.99013019,0.0004,2]
[321394797,1712123450608,-545.99013019,0.0004,2]
[321394798,1712123450618,-150.0,0.00040001,2]
[321394799,1712123450628,-150.0,0.00040052,2]
[321394800,1712123450638,-150.0,0.00040099,2]
[321394801,1712123450647,-870.32,0.000401,7]
[321394802,1712123450660,-1500.0,0.00040163,2]
[321394803,1712123450669,-212.61072703,0.00040173,14]
[321394804,1712123450679,-150.0,0.00040183,2]
[321394805,1712123450689,-150.0,0.00040313,2]
[321394806,1712123450699,-150.0,0.0004035,2]
[321394807,1712123450709,-1500.0,0.00040375,2]
[321394808,1712123450718,-1500.0,0.00040387,2]
[321394809,1712123450729,-1500.0,0.00040389,2]
[321394810,1712123450740,-1500.0,0.00040477,2]
[321394811,1712123450750,-150.0,0.00040527,2]
[321394812,1712123450759,-150.91,0.00040548,2]
[321394813,1712123450770,-150.0,0.00040584,2]
[321394814,1712123450779,-4073.5165555,0.00040589,2]
[321394815,1712123450789,-1397.822,0.00040592,2]
[321394816,1712123450798,-964.0,0.00040592,2]
[321394817,1712123450807,-459.0,0.00040592,2]
[321394818,1712123450816,-2427.0,0.00040592,2]
[321394819,1712123450826,-529.173,0.00040592,2]
[321394820,1712123450836,-286.823,0.00040592,2]
[321394821,1712123450845,-1057.546,0.00040592,2]
[321394822,1712123450855,-1256.0,0.00040592,2]
[321394823,1712123450864,-282.045,0.00040592,2]
[321394824,1712123450873,-606.0,0.00040592,2]
[321394825,1712123450883,-1283.375,0.00040592,2]
[321394826,1712123450892,-434.0,0.00040592,2]
[321394827,1712123450901,-812.289,0.00040592,2]
[321394828,1712123450911,-217.444,0.00040592,2]
[321394829,1712123450920,-206.747,0.00040592,2]
[321394830,1712123450929,-1140.0,0.00040592,2]
[321394831,1712123450938,-194.0,0.00040592,2]
[321394832,1712123450948,-449.619,0.00040592,2]
[321394833,1712123450957,-1478.885,0.00040592,2]
[321394834,1712123450966,-2989.0,0.00040592,2]
[321394835,1712123450976,-151.027,0.00040592,2]
[321394836,1712123450985,-1631.0,0.00040592,2]
[321394837,1712123450995,-2430.0,0.00040592,2]
[321394838,1712123451005,-251.458,0.00040592,2]
[321394839,1712123451016,-229.753,0.00040592,2]
[321394840,1712123451025,-151.999,0.00040592,2]
[321394841,1712123451035,-1206.0,0.00040592,2]
[321394842,1712123451044,-43082.0,0.00040592,2]
[321394843,1712123451054,-1190.308,0.00040592,2]
[321394844,1712123451063,-4784.0,0.00040592,2]
[321394845,1712123451073,-5696.0,0.00040592,2]
[321394846,1712123451082,-2456.0,0.00040592,2]
[321394847,1712123451092,-1059.885,0.00040592,2]
[321394848,1712123451100,-150.0,0.00040599,2]
[321394849,1712123451110,-1500.0,0.00040646,2]
[321394850,1712123451119,-150.0,0.00040658,2]
[321394851,1712123451129,-150.0,0.00040679,2]
[321394852,1712123451138,-150.0,0.00040705,2]
[321394853,1712123451147,-150.0,0.00040707,2]
[321394854,1712123451157,-150.0,0.00040718,2]
[321394855,1712123451167,-150.0,0.00040723,2]
[321394856,1712123451176,-1300.27766308,0.00040742,13]
[321394857,1712123451185,-1300.27766301,0.00040742,13]
[321394858,1712123451195,-1300.27766301,0.00040742,13]
[321394859,1712123451204,-1300.27766301,0.00040742,13]
[321394860,1712123451213,-1300.27766301,0.00040742,13]
[321394861,1712123451222,-1300.27766301,0.00040742,13]
[321394862,1712123451232,-1500.0,0.0004075,2]
[321394863,1712123451241,-150.0,0.00040757,2]
[321394864,1712123451252,-150.0,0.00040758,2]
[321394865,1712123451263,-800.95,0.00040767,15]
[321394866,1712123451273,-150.0,0.00040793,2]
[321394867,1712123451282,-150.0,0.00040805,2]
[321394868,1712123451292,-300.0,0.00040812,2]
[321394869,1712123451301,-150.0,0.00040856,2]
[321394870,1712123451310,-150.0,0.00040863,2]
[321394871,1712123451320,-300.0,0.00040863,2]
[321394872,1712123451330,-150.0,0.00040883,2]
[321394873,1712123451339,-1500.0,0.00040893,2]
[321394874,1712123451348,-1500.0,0.00040898,2]
[321394875,1712123451357,-150.0,0.00040904,2]
[321394876,1712123451367,-150.0,0.00040916,2]
[321394877,1712123451377,-150.0,0.00040917,2]
[321394878,1712123451386,-1500.0,0.00040925,2]
[321394879,1712123451396,-1500.0,0.00040926,2]
[321394880,1712123451405,-150.0,0.00040962,2]
[321394881,1712123451415,-150.0,0.0004098,2]
[321394882,1712123451424,-150.0,0.00040996,120]
[321394883,1712123451433,-950.0,0.00041,3]
[321394884,1712123451443,-656.0,0.00041,7]
[321394885,1712123451452,-150.0,0.00041004,2]
[321394886,1712123451461,-150.0,0.00041008,2]
[321394887,1712123451470,-150.0,0.00041045,2]
[321394888,1712123451480,-150.0,0.00041052,2]
[321394889,1712123451489,-1500.0,0.00041061,2]
[321394890,1712123451499,-2000.0,0.00041095,120]
[321394891,1712123451508,-2000.0,0.00041095,120]
[321394892,1712123451521,-2000.0,0.00041095,120]
[321394893,1712123451530,-2000.0,0.00041095,120]
[321394894,1712123451540,-536.04926296,0.00041095,120]
[321394895,1712123451550,-1000.0,0.00041096,5]
[321394896,1712123451559,-1000.0,0.00041096,5]
[321394897,1712123451568,-1000.0,0.00041096,5]
[321394898,1712123451578,-1000.0,0.00041096,5]
[321394899,1712123451588,-1000.0,0.00041096,5]
[321394900,1712123451598,-1000.0,0.00041096,5]
[321394901,1712123451607,-1000.0,0.00041096,5]
[321394902,1712123451616,-1000.0,0.00041096,5]
[321394903,1712123451626,-1000.0,0.00041096,5]
[321394904,1712123451636,-1000.0,0.00041096,5]
[321394905,1712123451645,-1000.0,0.00041096,5]
[321394906,1712123451660,-1000.0,0.00041096,5]
[321394907,1712123451669,-1000.0,0.00041096,5]
[321394908,1712123451679,-1000.0,0.00041096,5]
[321394909,1712123451688,-1000.0,0.00041096,5]
[321394910,1712123451698,-1000.0,0.00041096,5]
[321394911,1712123451707,-1000.0,0.00041096,5]
[321394912,1712123451717,-1000.0,0.00041096,5]
[321394913,1712123451725,-1000.0,0.00041096,5]
[321394914,1712123451734,-1000.0,0.00041096,5]
[321394915,1712123451744,-1000.0,0.00041096,5]
[321394916,1712123451754,-1000.0,0.00041096,5]
[321394917,1712123451766,-1000.0,0.00041096,5]
[321394918,1712123451776,-1000.0,0.00041096,5]
[321394919,1712123451785,-1000.0,0.00041096,5]
[321394920,1712123451794,-1000.0,0.00041096,5]
[321394921,1712123451804,-1000.0,0.00041096,5]
[321394922,1712123451813,-1000.0,0.00041096,5]
[321394923,1712123451823,-1000.0,0.00041096,5]
[321394924,1712123451832,-1000.0,0.00041096,5]
[321394925,1712123451841,-1000.0,0.00041096,5]
[321394926,1712123451851,-1000.0,0.00041096,5]
[321394927,1712123451860,-1000.0,0.00041096,5]
[321394928,1712123451869,-1000.0,0.00041096,5]
[321394929,1712123451879,-1000.0,0.00041096,5]
[321394930,1712123451887,-1000.0,0.00041096,5]
[321394931,1712123451896,-1000.0,0.00041096,5]
[321394932,1712123451905,-1000.0,0.00041096,5]
[321394933,1712123451914,-1000.0,0.00041096,5]
[321394934,1712123451923,-1000.0,0.00041096,5]
[321394935,1712123451933,-1000.0,0.00041096,5]
[321394936,1712123451943,-1000.0,0.00041096,5]
[321394937,1712123451953,-1000.0,0.00041096,5]
[321394938,1712123451963,-1000.0,0.00041096,5]
[321394939,1712123451972,-1000.0,0.00041096,5]
[321394940,1712123451983,-1000.0,0.00041096,5]
[321394941,1712123451993,-1000.0,0.00041096,5]
[321394942,1712123452002,-1000.0,0.00041096,5]
[321394943,1712123452014,-1000.0,0.00041096,5]
[321394944,1712123452023,-1000.0,0.00041096,5]
[321394945,1712123452033,-1000.0,0.00041096,5]
[321394946,1712123452042,-1000.0,0.00041096,5]
[321394947,1712123452052,-1000.0,0.00041096,5]
[321394948,1712123452061,-1000.0,0.00041096,5]
[321394949,1712123452070,-1000.0,0.00041096,5]
[321394950,1712123452079,-1000.0,0.00041096,5]
[321394951,1712123452088,-1000.0,0.00041096,5]
[321394952,1712123452097,-1000.0,0.00041096,5]
[321394953,1712123452107,-1000.0,0.00041096,5]
[321394954,1712123452116,-1000.0,0.00041096,5]
[321394955,1712123452125,-1000.0,0.00041096,5]
[321394956,1712123452134,-1000.0,0.00041096,5]
[321394957,1712123452144,-1000.0,0.00041096,5]
[321394958,1712123452153,-1000.0,0.00041096,5]
[321394959,1712123452162,-1000.0,0.00041096,5]
[321394960,1712123452171,-1000.0,0.00041096,5]
[321394961,1712123452180,-1000.0,0.00041096,5]
[321394962,1712123452189,-1000.0,0.00041096,5]
[321394963,1712123452199,-1000.0,0.00041096,5]
[321394964,1712123452208,-1000.0,0.00041096,5]
[321394965,1712123452218,-1000.0,0.00041096,5]
[321394966,1712123452227,-1000.0,0.00041096,5]
[321394967,1712123452237,-1000.0,0.00041096,5]
[321394968,1712123452247,-1000.0,0.00041096,5]
[321394969,1712123452256,-1000.0,0.00041096,5]
[321394970,1712123452266,-1000.0,0.00041096,5]
[321394971,1712123452276,-1000.0,0.00041096,5]
[321394972,1712123452285,-1000.0,0.00041096,5]
[321394973,1712123452294,-1000.0,0.00041096,5]
[321394974,1712123452304,-1000.0,0.00041096,5]
[321394975,1712123452313,-1000.0,0.00041096,5]
[321394976,1712123452322,-1000.0,0.00041096,5]
[321394977,1712123452331,-1000.0,0.00041096,5]
[321394978,1712123452341,-1000.0,0.00041096,5]
[321394979,1712123452350,-1000.0,0.00041096,5]
[321394980,1712123452359,-1000.0,0.00041096,5]
[321394981,1712123452368,-1000.0,0.00041096,5]
[321394982,1712123452378,-1000.0,0.00041096,5]
[321394983,1712123452387,-1000.0,0.00041096,5]
[321394984,1712123452397,-1000.0,0.00041096,5]
[321394985,1712123452406,-1000.0,0.00041096,5]
[321394986,1712123452416,-1000.0,0.00041096,5]
[321394987,1712123452426,-1000.0,0.00041096,5]
[321394988,1712123452435,-1000.0,0.00041096,5]
[321394989,1712123452444,-706.0,0.00041096,5]
[321394990,1712123452454,-183.0,0.00041096,2]
[321394991,1712123452463,-150.0,0.00041116,2]
[321394992,1712123452473,-150.0,0.00041128,2]
[321394993,1712123452482,-150.0,0.00041128,2]
[321394994,1712123452491,-150.0,0.00041184,120]
[321394995,1712123452500,-8214.69954185,0.00041198,2]
[321394996,1712123452510,-1738.61790307,0.00041198,2]
[321394997,1712123452522,-1500.0,0.00041207,2]
[321394998,1712123452532,-150.0,0.00041212,2]
[321394999,1712123452542,-150.0,0.00041223,2]
[321395000,1712123452551,-150.0,0.0004123,2]
[321395001,1712123452560,-1500.0,0.00041234,2]
[321395002,1712123452569,-150.0,0.00041264,2]
[321395003,1712123452578,-150.0,0.00041276,2]
[321395004,1712123452587,-1500.0,0.00041288,2]
[321395005,1712123452596,-150.0,0.00041288,2]
[321395006,1712123452605,-326.96749214,0.00041295,2]
[321395007,1712123452614,-150.0,0.00041311,2]
[321395008,1712123452623,-150.0,0.00041325,2]
[321395009,1712123452632,-150.0,0.00041327,2]
[321395010,1712123452642,-234.89503208,0.00041348,2]
[321395011,1712123452652,-150.0,0.00041375,2]
[321395012,1712123452818,-1500.0,0.00041389,2]
[321395013,1712123452840,-150.0,0.00041407,2]
[321395014,1712123452849,-150.0,0.00041421,2]
[321395015,1712123452859,-150.0,0.00041427,2]
[321395016,1712123452868,-150.0,0.00041435,2]
[321395017,1712123452878,-150.0,0.00041445,2]
[321395018,1712123452888,-150.0,0.00041446,2]
[321395019,1712123452897,-150.0,0.00041448,2]
[321395020,1712123452906,-1500.0,0.00041451,2]
[321395021,1712123452915,-150.0,0.00041457,2]
[321395022,1712123452924,-1500.0,0.00041464,2]
[321395023,1712123452933,-150.0,0.00041474,2]
[321395024,1712123452943,-150.0,0.00041478,2]
[321395025,1712123452952,-150.0,0.0004148,2]
[321395026,1712123452960,-300.0,0.00041481,2]
[321395027,1712123452970,-150.0,0.00041491,2]
[321395028,1712123452979,-150.0,0.00041492,2]
[321395029,1712123452988,-1500.0,0.00041493,2]
[321395030,1712123452997,-5000.0,0.000415,2]
[321395031,1712123453007,-150.0,0.00041505,2]
[321395032,1712123453018,-150.0,0.00041509,2]
[321395033,1712123453027,-1500.0,0.0004151,2]
[321395034,1712123453036,-300.0,0.0004151,2]
[321395035,1712123453045,-1500.0,0.00041513,2]
[321395036,1712123453055,-150.0,0.00041518,2]
[321395037,1712123453065,-150.0,0.0004152,2]
[321395038,1712123453074,-150.0,0.00041522,2]
[321395039,1712123453084,-150.0,0.00041526,2]
[321395040,1712123453093,-150.0,0.00041532,2]
[321395041,1712123453102,-200.58693421,0.00041534,5]
[321395042,1712123453111,-1500.0,0.00041534,2]
[321395043,1712123453120,-150.0,0.00041537,2]
[321395044,1712123453130,-150.0,0.00041551,2]
[321395045,1712123453140,-150.0,0.00041559,2]
[321395046,1712123453150,-150.0,0.0004158,2]
[321395047,1712123453159,-1500.0,0.00041585,2]
[321395048,1712123453169,-150.0,0.00041588,2]
[321395049,1712123453182,-150.0,0.0004159,2]
[321395050,1712123453192,-150.0,0.00041596,2]
[321395051,1712123453201,-364.56,0.000416,7]
[321395052,1712123453211,-6672.10579128,0.000416,2]
[321395053,1712123453221,-300.0,0.00041602,2]
[321395054,1712123453230,-150.0,0.00041605,2]
[321395055,1712123453240,-150.0,0.00041605,2]
[321395056,1712123453250,-1500.0,0.00041606,2]
[321395057,1712123453260,-150.0,0.00041613,2]
[321395058,1712123453271,-150.0,0.00041613,2]
[321395059,1712123453282,-150.0,0.00041614,2]
[321395060,1712123453292,-1500.0,0.00041628,2]
[321395061,1712123453305,-150.0,0.00041632,2]
[321395062,1712123453315,-150.0,0.0004164,2]
[321395063,1712123453325,-300.0,0.0004164,2]
[321395064,1712123453335,-150.0,0.00041641,2]
[321395065,1712123453346,-3191.632726,0.00041643,7]
[321395066,1712123453356,-2359.319924,0.00041643,7]
[321395067,1712123453365,-150.91,0.00041644,2]
[321395068,1712123453376,-150.0,0.00041645,2]
[321395069,1712123453386,-150.0,0.0004165,2]
[321395070,1712123453396,-150.0,0.00041655,2]
[321395071,1712123453405,-1500.0,0.00041655,2]
[321395072,1712123453415,-150.0,0.00041656,2]
[321395073,1712123453424,-150.0,0.00041657,2]
[321395074,1712123453435,-150.0,0.00041661,2]
[321395075,1712123453444,-150.0,0.00041681,2]
[321395076,1712123453454,-1500.0,0.00041684,2]
[321395077,1712123453464,-150.0,0.00041689,2]
[321395078,1712123453474,-150.0,0.00041702,2]
[321395079,1712123453484,-150.0,0.00041705,2]
[321395080,1712123453493,-150.0,0.00041714,2]
[321395081,1712123453503,-150.0,0.00041715,2]
[321395082,1712123453514,-150.0,0.00041716,2]
[321395083,1712123453524,-150.0,0.00041726,2]
[321395084,1712123453534,-150.0,0.00041726,2]
[321395085,1712123453544,-150.0,0.00041727,2]
[321395086,1712123453554,-163588.57170846,0.00041743,2]
[321395087,1712123453565,-117192.24178954,0.00041743,2]
[321395088,1712123453574,-1210.0,0.00041743,2]
[321395089,1712123453585,-338.15150351,0.00041743,2]
[321395090,1712123453595,-2919.79322307,0.00041743,2]
[321395091,1712123453604,-179.36207103,0.00041743,7]
[321395092,1712123453614,-3101.89000583,0.00041743,2]
[321395093,1712123453623,-199.30020933,0.00041743,2]
[321395094,1712123453633,-1000.09149832,0.00041743,2]
[321395095,1712123453642,-12112.70864019,0.00041743,2]
[321395096,1712123453653,-10390.14718326,0.00041743,2]
[321395097,1712123453663,-5034.71535865,0.00041743,2]
[321395098,1712123453674,-2654.70858624,0.00041743,2]
[321395099,1712123453683,-2383.40364203,0.00041743,2]
[321395100,1712123453693,-5444.89021339,0.00041743,2]
[321395101,1712123453702,-2600.30787476,0.00041743,2]
[321395102,1712123453711,-133375.69499817,0.00041743,2]
[321395103,1712123453720,-3153.88908383,0.00041743,2]
[321395104,1712123453730,-10115.89158449,0.00041743,2]
[321395105,1712123453739,-159.24259359,0.00041743,2]
[321395106,1712123453749,-22141.32121019,0.00041743,2]
[321395107,1712123453760,-14693.26406619,0.00041743,2]
[321395108,1712123453770,-7494.93921007,0.00041743,2]
[321395109,1712123453779,-1037.69638536,0.00041743,2]
[321395110,1712123453789,-5795.957112,0.00041743,2]
[321395111,1712123453798,-71984.77227404,0.00041743,2]
[321395112,1712123453807,-844.58261289,0.00041743,2]
[321395113,1712123453817,-1015.08285317,0.00041743,2]
[321395114,1712123453826,-185.3802717,0.00041743,2]
[321395115,1712123453835,-88798.83493149,0.00041743,2]
[321395116,1712123453845,-8966.03188531,0.00041743,2]
[321395117,1712123453853,-1273.24431412,0.00041743,2]
[321395118,1712123453863,-4800.28145748,0.00041743,2]
[321395119,1712123453872,-5328.65663633,0.00041743,2]
[321395120,1712123453881,-24433.36841512,0.00041743,2]
[321395121,1712123453890,-478.39628654,0.00041743,2]
[321395122,1712123453900,-22028.98682,0.00041743,2]
[321395123,1712123453909,-12468.85119025,0.00041743,2]
[321395124,1712123453918,-1866.57530205,0.00041743,2]
[321395125,1712123453927,-643.0,0.00041743,2]
[321395126,1712123453936,-942.37101421,0.00041743,2]
[321395127,1712123453944,-9039.97543873,0.00041743,2]
[321395128,1712123453953,-556.61570855,0.00041743,2]
[321395129,1712123453962,-1785.42885333,0.00041743,2]
[321395130,1712123453972,-16274.31318571,0.00041743,2]
[321395131,1712123453981,-169.6118067,0.00041743,2]
[321395132,1712123453989,-7030.90160556,0.00041743,2]
[321395133,1712123453998,-500.0,0.00041743,2]
[321395134,1712123454007,-550.0,0.00041743,2]
[321395135,1712123454018,-979.29993071,0.00041743,2]
[321395136,1712123454027,-499.999999,0.00041743,2]
[321395137,1712123454036,-10407.2202442,0.00041743,2]
[321395138,1712123454046,-500.0,0.00041743,2]
[321395139,1712123454055,-164712.70657297,0.00041743,2]
[321395140,1712123454064,-14531.02684575,0.00041743,2]
[321395141,1712123454073,-6000.0,0.00041743,2]
[321395142,1712123454082,-1004.13222411,0.00041743,2]
[321395143,1712123454091,-10312.4958606,0.00041743,2]
[321395144,1712123454100,-14221.88324322,0.00041743,2]
[321395145,1712123454109,-547.47525671,0.00041743,2]
[321395146,1712123454118,-150.0,0.00041743,2]
[321395147,1712123454127,-3950.82573735,0.00041743,2]
[321395148,1712123454136,-634.94232582,0.00041743,2]
[321395149,1712123454145,-608.99474061,0.00041743,2]
[321395150,1712123454154,-208.81602519,0.00041743,2]
[321395151,1712123454164,-149168.8533769,0.00041743,2]
[321395152,1712123454173,-424941.24667888,0.00041743,7]
[321395153,1712123454182,-436.90124008,0.00041743,2]
[321395154,1712123454191,-1037.25920075,0.00041743,2]
[321395155,1712123454200,-20657.81205445,0.00041743,2]
[321395156,1712123454209,-2500.0,0.00041743,2]
[321395157,1712123454219,-563.30598829,0.00041743,2]
[321395158,1712123454228,-27028.83121728,0.00041743,2]
[321395159,1712123454237,-2313.97517764,0.00041743,2]
[321395160,1712123454247,-234.02174598,0.00041743,2]
[321395161,1712123454256,-68136.86410149,0.00041743,2]
[321395162,1712123454266,-1597.84021228,0.00041743,2]
[321395163,1712123454275,-524.03350757,0.00041743,2]
[321395164,1712123454285,-10202.22792338,0.00041743,2]
[321395165,1712123454294,-405967.12358644,0.00041743,2]
[321395166,1712123454303,-887.13764828,0.00041743,2]
[321395167,1712123454312,-26813.13253337,0.00041743,2]
[321395168,1712123454321,-9265.97019733,0.00041743,2]
[321395169,1712123454330,-468.17560273,0.00041743,2]
[321395170,1712123454339,-384.75447235,0.00041743,2]
[321395171,1712123454349,-240.28754514,0.00041743,2]
[321395172,1712123454358,-7681.89908263,0.00041743,7]
[321395173,1712123454367,-14795.58944341,0.00041743,2]
[321395174,1712123454376,-21359.65975953,0.00041743,2]
[321395175,1712123454385,-316.68333762,0.00041743,2]
[321395176,1712123454394,-1764.99836856,0.00041743,2]
[321395177,1712123454404,-532.49601998,0.00041743,2]
[321395178,1712123454413,-540.09961427,0.00041743,7]
[321395179,1712123454422,-4898.12585304,0.00041743,2]
[321395180,1712123454431,-367.00972938,0.00041743,5]
[321395181,1712123454440,-354.22389253,0.00041743,2]
[321395182,1712123454450,-592.14621856,0.00041743,2]
[321395183,1712123454459,-9490.91327833,0.00041743,2]
[321395184,1712123454468,-288857.38560105,0.00041743,2]
[321395185,1712123454477,-155.4904952,0.00041743,2]
[321395186,1712123454486,-8412.43530555,0.00041743,7]
[321395187,1712123454495,-1786.24071918,0.00041743,2]
[321395188,1712123454504,-337.35937306,0.00041743,2]
[321395189,1712123454513,-594.76918364,0.00041743,20]
[321395190,1712123454523,-5032.99215443,0.00041743,2]
[321395191,1712123454532,-15147.82445363,0.00041743,4]
[321395192,1712123454541,-407.0,0.00041743,2]
[321395193,1712123454550,-11512.27160819,0.00041743,2]
[321395194,1712123454559,-13000.0,0.00041743,2]
[321395195,1712123454568,-1004.52980344,0.00041743,2]
[321395196,1712123454577,-13655.90098274,0.00041743,2]
[321395197,1712123454586,-214.07977406,0.00041743,2]
[321395198,1712123454596,-636.69041891,0.00041743,2]
[321395199,1712123454605,-1003.65638298,0.00041743,2]
[321395200,1712123454614,-1736.09951575,0.00041743,2]
[321395201,1712123454623,-6293.26564633,0.00041743,2]
[321395202,1712123454632,-67627.12598584,0.00041743,2]
[321395203,1712123454641,-47726.51315902,0.00041743,10]
[321395204,1712123454650,-2500.0,0.00041743,7]
[321395205,1712123454659,-2500.0,0.00041743,7]
[321395206,1712123454670,-151.0,0.00041743,14]
[321395207,1712123454679,-151.0,0.00041743,14]
[321395208,1712123454688,-151.0,0.00041743,14]
[321395209,1712123454698,-550.0,0.00041743,5]
[321395210,1712123454706,-550.0,0.00041743,5]
[321395211,1712123454716,-150.0,0.00041743,2]
[321395212,1712123454726,-203.55541,0.00041743,14]
[321395213,1712123454735,-203.55541,0.00041743,14]
[321395214,1712123454745,-203.55541,0.00041743,14]
[321395215,1712123454754,-203.55541,0.00041743,14]
[321395216,1712123454764,-203.55541,0.00041743,14]
[321395217,1712123454773,-203.55541,0.00041743,14]
[321395218,1712123454782,-460.0,0.00041743,30]
[321395219,1712123454792,-300.0,0.0004175,2]
[321395220,1712123454801,-150.0,0.00041754,2]
[321395221,1712123454810,-3352.54061562,0.00041757,4]
[321395222,1712123454819,-1828.54434568,0.00041757,10]
[321395223,1712123454828,-389.32561534,0.00041757,15]
[321395224,1712123454838,-2000.0,0.00041757,7]
[321395225,1712123454847,-200.0,0.00041757,7]
[321395226,1712123454855,-2000.0,0.00041757,7]
[321395227,1712123454864,-200.0,0.00041757,7]
[321395228,1712123454874,-7099.18514396,0.00041758,5]
[321395229,1712123454882,-1500.0,0.00041761,2]
[321395230,1712123454891,-300.0,0.00041767,2]
[321395231,1712123454900,-150.0,0.00041773,2]
[321395232,1712123454909,-300.0,0.0004178,2]
[321395233,1712123454918,-150.0,0.00041786,2]
[321395234,1712123454927,-319.20437671,0.00041797,2]
[321395235,1712123454936,-327.18505542,0.00041797,2]
[321395236,1712123454945,-200.0,0.00041797,2]
[321395237,1712123454954,-150.0,0.00041798,2]
[321395238,1712123454964,-1583.48,0.000418,7]
[321395239,1712123454975,-1500.0,0.000418,2]
[321395240,1712123454984,-150.0,0.000418,2]
[321395241,1712123454993,-475.260357,0.000418,3]
[321395242,1712123455003,-150.0,0.00041801,2]
[321395243,1712123455012,-150.0,0.00041802,2]
[321395244,1712123455023,-150.0,0.00041829,2]